bitfinex-derivatives/quotes_BTCF0:USTF0_20250325
["timestamp","ask_amount","ask_price","bid_price","bid_amount"]
[1742886780301,0.59158511,86716.0,86715.0,0.41073853]
[1742886782014,0.59258511,86716.0,86715.0,0.41073853]
[1742886782414,0.6033495,86716.0,86715.0,0.41073853]
[1742886782911,0.6561495,86716.0,86715.0,0.41073853]
[1742886783215,0.7107495,86716.0,86715.0,0.41073853]
[1742886783410,0.7107495,86716.0,86715.0,0.40953853]
[1742886784123,0.1153064,86715.0,86714.0,0.00016]
[1742886784410,0.17946895,86715.0,86714.0,0.00016]
[1742886784611,0.23406895,86715.0,86714.0,0.00016]
[1742886785206,0.1153144,86709.0,86708.0,0.1096]
[1742886785406,0.47723441,86709.0,86708.0,0.11072]
[1742886785616,0.47723441,86709.0,86708.0,0.1096]
[1742886786018,0.58753441,86709.0,86708.0,0.1096]
[1742886786814,0.58753441,86709.0,86708.0,0.1106]
[1742886787217,0.58753441,86709.0,86686.0,0.00871745]
[1742886787433,0.58753441,86709.0,86634.0,0.01732]
[1742886787434,0.7216,86693.0,86634.0,0.01732]
[1742886787608,0.7216,86693.0,86633.0,0.93019837]
[1742886787609,0.1154062,86640.0,86633.0,0.93019837]
[1742886787809,0.2344862,86640.0,86635.0,0.68085317]
[1742886788117,0.2344862,86640.0,86639.0,0.00178168]
[1742886788304,0.23588621,86640.0,86639.0,0.00178168]
[1742886788613,0.23588621,86640.0,86639.0,0.00778168]
[1742886789220,0.23788621,86640.0,86639.0,0.00778168]
[1742886790103,0.23788621,86640.0,86639.0,0.00178168]
[1742886790308,0.24088621,86640.0,86639.0,0.00178168]
[1742886790718,0.12180621,86640.0,86639.0,0.00178168]
[1742886790919,0.3608,86651.0,86639.0,0.00178168]
[1742886791115,0.1153916,86651.0,86650.0,0.3608]
[1742886791315,0.1160316,86651.0,86650.0,0.3608]
[1742886791620,0.2351116,86651.0,86650.0,0.3614]
[1742886791817,0.2351116,86651.0,86650.0,0.0006]
[1742886792122,0.1154049,86641.0,86640.0,0.0541]
[1742886792311,0.1154049,86641.0,86640.0,0.2167]
[1742886793016,0.1154049,86641.0,86635.0,0.52263317]
[1742886793017,0.1154116,86636.0,86635.0,0.52263317]
[1742886793218,0.2353716,86636.0,86635.0,0.00076]
[1742886793410,0.2363716,86636.0,86635.0,0.00076]
[1742886793606,0.2363716,86636.0,86635.0,0.00068]
[1742886794612,0.2363316,86636.0,86635.0,0.00068]
[1742886796219,0.0577115,86628.0,86606.0,0.3608]
[1742886796420,0.1154315,86621.0,86614.0,0.3608]
[1742886796727,0.1167115,86621.0,86620.0,0.00064]
[1742886797320,0.1167115,86621.0,86620.0,0.00164]
[1742886798427,0.1167115,86621.0,86620.0,0.00364]
[1742886798820,0.1167115,86621.0,86620.0,0.003]
[1742886799020,0.1544115,86621.0,86620.0,0.003]
[1742886799714,0.1544115,86621.0,86620.0,0.002]
[1742886799917,0.1154422,86613.0,86611.0,0.05138]
[1742886800124,0.11664221,86613.0,86612.0,0.00077315]
[1742886800627,0.13864221,86613.0,86612.0,0.00077315]
[1742886801329,0.13864221,86613.0,86612.0,0.00177315]
[1742886802630,0.13864221,86613.0,86612.0,0.00277315]
[1742886802930,0.1154502,86607.0,86606.0,0.17285735]
[1742886803228,0.11685021,86607.0,86606.0,0.0209]
[1742886804431,0.11685021,86607.0,86606.0,0.0239]
[1742886805118,0.11685021,86607.0,86606.0,0.0269]
[1742886807530,0.00140001,86607.0,86606.0,0.0066]
[1742886807833,0.0577242,86609.0,86606.0,0.12205]
[1742886808039,0.1731717,86609.0,86608.0,0.4762489]
[1742886808329,0.1731626,86616.0,86615.0,0.1154333]
[1742886808534,0.17412261,86616.0,86615.0,0.49226467]
[1742886810035,0.17512261,86616.0,86615.0,0.49226467]
[1742886810634,0.17712261,86616.0,86615.0,0.4922513]
[1742886811329,0.17512261,86616.0,86615.0,0.4922513]
[1742886811529,0.17812261,86616.0,86615.0,0.5486513]
[1742886811729,0.17912261,86616.0,86615.0,0.5486513]
[1742886812233,0.17612261,86616.0,86615.0,0.57338192]
[1742886812434,0.17912261,86616.0,86615.0,0.57338192]
[1742886812939,0.17912261,86616.0,86615.0,0.57348921]
[1742886813332,0.17812261,86616.0,86615.0,0.57348921]
[1742886814339,0.17812261,86616.0,86615.0,0.59378921]
[1742886814534,0.17812261,86616.0,86615.0,0.09726392]
[1742886814840,0.17512261,86616.0,86615.0,0.07248304]
[1742886815036,0.23092261,86616.0,86615.0,0.07248304]
[1742886815236,0.23092261,86616.0,86615.0,0.07188304]
[1742886815427,0.28292261,86616.0,86615.0,0.01548304]
[1742886815633,0.28392261,86616.0,86615.0,0.01548304]
[1742886816033,0.28292261,86616.0,86615.0,0.01548304]
[1742886816233,0.28392261,86616.0,86615.0,0.01548304]
[1742886816844,0.28392261,86616.0,86615.0,0.04027755]
[1742886817337,0.28192261,86616.0,86615.0,0.04027755]
[1742886817643,0.0577251,86608.0,86594.0,0.3608]
[1742886817836,0.1154555,86603.0,86602.0,0.1087]
[1742886818036,0.11641551,86603.0,86602.0,0.10934]
[1742886818234,0.17001551,86603.0,86602.0,0.12964]
[1742886818443,0.17001551,86603.0,86602.0,0.10934]
[1742886818737,0.22231551,86603.0,86602.0,0.10934]
[1742886819542,0.22231551,86603.0,86602.0,0.11034]
[1742886820943,0.22231551,86603.0,86602.0,0.11134]
[1742886822242,0.27846163,86603.0,86602.0,0.11134]
[1742886822443,0.27846163,86603.0,86602.0,0.12542411]
[1742886823543,0.17256163,86603.0,86602.0,0.12542411]
[1742886823943,0.1154915,86576.0,86572.0,0.3608]
[1742886824147,0.11645151,86576.0,86575.0,0.13685492]
[1742886824333,0.1164915,86576.0,86575.0,0.13685492]
[1742886824537,0.1164915,86576.0,86575.0,0.00106202]
[1742886825242,0.1164915,86576.0,86575.0,0.00706202]
[1742886825437,0.1164915,86576.0,86575.0,0.01006202]
[1742886825636,0.1164915,86576.0,86575.0,0.06766202]
[1742886826548,0.1164915,86576.0,86575.0,0.19220117]
[1742886826549,0.0961915,86576.0,86575.0,0.19220117]
[1742886826942,0.0961915,86576.0,86575.0,0.18920117]
[1742886827635,0.0961915,86576.0,86575.0,0.21372169]
[1742886827836,0.00068,86576.0,86575.0,0.27112169]
[1742886828031,0.1154897,86578.0,86577.0,0.1154889]
[1742886828236,0.1154897,86578.0,86577.0,0.14068942]
[1742886828652,0.17339996,86584.0,86583.0,0.1154822]
[1742886828843,0.17407996,86584.0,86583.0,0.50143384]
[1742886829846,0.05859426,86584.0,86583.0,0.51678481]
[1742886830047,0.05791426,86584.0,86583.0,0.51678481]
[1742886830239,0.05791426,86584.0,86583.0,0.51778481]
[1742886830445,0.05859426,86584.0,86583.0,0.51778481]
[1742886830834,0.00085326,86584.0,86583.0,0.51778481]
[1742886831246,0.00017326,86584.0,86583.0,0.51778481]
[1742886831446,0.13729289,86588.0,86587.0,0.1154769]
[1742886831750,0.13797289,86588.0,86587.0,0.27517951]
[1742886833345,0.13729289,86588.0,86587.0,0.27517951]
[1742886833546,0.13797289,86588.0,86587.0,0.27517951]
[1742886833746,0.0577366,86590.0,86589.0,0.2309431]
[1742886833941,0.0584166,86590.0,86589.0,0.27140571]
[1742886834346,0.00068,86590.0,86589.0,0.27140571]
[1742886834937,0.00168,86590.0,86589.0,0.27140571]
[1742886835150,0.001,86590.0,86589.0,0.27140571]
[1742886835445,0.00172,86590.0,86589.0,0.27140571]
[1742886835648,0.1164729,86590.0,86589.0,0.04046261]
[1742886835954,0.1171529,86590.0,86589.0,0.04046261]
[1742886836251,0.1178729,86590.0,86589.0,0.04046261]
[1742886836451,0.1171929,86590.0,86589.0,0.04046261]
[1742886836850,0.1171929,86590.0,86589.0,0.15593681]
[1742886837149,0.1171929,86590.0,86589.0,0.17071268]
[1742886838945,0.1171929,86590.0,86589.0,0.15687835]
[1742886840047,0.22014269,86590.0,86589.0,0.15687835]
[1742886840248,0.22014269,86590.0,86589.0,0.20916177]
[1742886840447,0.10466979,86590.0,86589.0,0.20916177]
[1742886840748,0.10466979,86590.0,86589.0,0.26486177]
[1742886841051,0.10394979,86590.0,86589.0,0.26486177]
[1742886841253,0.10462979,86590.0,86589.0,0.26486177]
[1742886844442,0.13729289,86597.0,86596.0,0.1154649]
[1742886844646,0.17161612,86604.0,86603.0,0.1154555]
[1742886844842,0.17229612,86604.0,86603.0,0.51747529]
[1742886845047,0.17161612,86604.0,86603.0,0.51747529]
[1742886845546,0.08521612,86604.0,86603.0,0.62327529]
[1742886845749,0.20628398,86611.0,86610.0,0.1154462]
[1742886845946,0.20628398,86611.0,86610.0,0.63566599]
[1742886846143,0.37744888,86611.0,86610.0,0.61131843]
[1742886846451,0.26200398,86611.0,86610.0,0.61131843]
[1742886846652,0.20700398,86611.0,86610.0,0.61131843]
[1742886847153,0.21200398,86611.0,86610.0,0.61131843]
[1742886848647,0.00072,86611.0,86610.0,0.61131843]
[1742886848848,0.00017326,86612.0,86611.0,0.1154449]
[1742886849159,0.11629676,86612.0,86611.0,0.13163713]
[1742886849454,0.11629676,86612.0,86611.0,0.24083713]
[1742886849847,0.00085326,86612.0,86611.0,0.24083713]
[1742886850252,0.00017326,86612.0,86611.0,0.24083713]
[1742886850445,0.00285326,86612.0,86611.0,0.24083713]
[1742886850649,0.0564,86624.0,86623.0,0.1154289]
[1742886850854,0.10712,86624.0,86623.0,0.1161089]
[1742886851054,0.0004,86632.0,86630.0,0.1154195]
[1742886851363,0.60392218,86631.0,86630.0,0.4771795]
[1742886853156,0.48850398,86631.0,86630.0,0.4771795]
[1742886853455,0.49250398,86631.0,86630.0,0.48588527]
[1742886853658,0.28622,86631.0,86630.0,0.48588527]
[1742886853858,0.28622,86631.0,86630.0,0.54258527]
[1742886854258,0.4016382,86631.0,86630.0,0.54258527]
[1742886855258,0.4016382,86631.0,86630.0,0.36176]
[1742886855451,0.4016382,86631.0,86623.0,0.3608]
[1742886855452,0.1154275,86625.0,86623.0,0.3608]
[1742886855762,0.1154289,86623.0,86622.0,0.00017316]
[1742886855950,0.1560689,86623.0,86622.0,0.00017316]
[1742886856259,0.1731564,86618.0,86617.0,0.1154365]
[1742886856455,0.1738364,86618.0,86617.0,0.00064]
[1742886856652,0.2299364,86618.0,86617.0,0.00064]
[1742886856845,0.1154409,86614.0,86613.0,0.3608]
[1742886857052,0.1161609,86614.0,86613.0,0.3614]
[1742886858454,0.00072,86614.0,86613.0,0.49238143]
[1742886858962,0.0529,86617.0,86616.0,0.1154382]
[1742886859149,0.05362,86617.0,86616.0,0.13157743]
[1742886860050,0.10782,86617.0,86616.0,0.13157743]
[1742886860459,0.1071,86617.0,86616.0,0.13157743]
[1742886860756,0.1071,86617.0,86616.0,0.13163123]
[1742886860958,0.057,86617.0,86616.0,0.13163123]
[1742886861146,0.0562,86617.0,86616.0,0.13163123]
[1742886861353,0.05992,86617.0,86616.0,0.13163123]
[1742886861651,0.05992,86617.0,86614.0,0.0577199]
[1742886861652,0.0577238,86609.0,86603.0,8e-05]
[1742886861855,0.1154542,86604.0,86603.0,8e-05]
[1742886862054,0.11653421,86604.0,86603.0,8e-05]
[1742886863161,0.1154649,86596.0,86595.0,0.00017316]
[1742886863469,0.11654491,86596.0,86595.0,0.11623936]
[1742886863658,0.11654491,86596.0,86595.0,0.13105874]
[1742886864460,0.11654491,86596.0,86595.0,0.13405874]
[1742886864962,0.11654491,86596.0,86595.0,0.13105874]
[1742886865155,0.17224491,86596.0,86595.0,0.13205874]
[1742886865861,0.05678001,86596.0,86595.0,0.13305874]
[1742886866068,0.05678001,86596.0,86595.0,0.24585874]
[1742886866362,0.0557,86596.0,86595.0,0.24585874]
[1742886866953,0.1711649,86596.0,86595.0,0.24585874]
[1742886867159,0.17324491,86596.0,86595.0,0.24485874]
[1742886867657,0.17224491,86596.0,86595.0,0.24485874]
[1742886867859,0.17324491,86596.0,86595.0,0.24485874]
[1742886868461,0.17524491,86596.0,86595.0,0.24385874]
[1742886869062,0.17324491,86596.0,86595.0,0.2594249]
[1742886869256,0.17424491,86596.0,86595.0,0.2594249]
[1742886869761,0.17324491,86596.0,86595.0,0.2594249]
[1742886869959,0.17524491,86596.0,86595.0,0.2594249]
[1742886870362,0.17424491,86596.0,86595.0,0.2594249]
[1742886870563,0.17524491,86596.0,86595.0,0.2594249]
[1742886870949,0.17424491,86596.0,86595.0,0.2594249]
[1742886871265,0.06078001,86596.0,86595.0,0.2594249]
[1742886871467,0.0597,86596.0,86595.0,0.5294249]
[1742886871766,0.0597,86596.0,86595.0,0.2594249]
[1742886872161,0.06086,86596.0,86595.0,0.2594249]
[1742886872362,0.3608,86627.0,86611.0,0.1154449]
[1742886872563,0.0549,86616.0,86615.0,0.1154395]
[1742886872863,0.0549,86616.0,86615.0,0.13160566]
[1742886873164,0.05562,86616.0,86615.0,0.13160566]
[1742886873373,0.1106,86616.0,86615.0,0.24460566]
[1742886873866,0.1136,86616.0,86615.0,0.24460566]
[1742886874067,0.1136,86616.0,86615.0,0.25942504]
[1742886874962,0.1136,86616.0,86615.0,0.25970863]
[1742886875469,0.004,86616.0,86615.0,0.25970863]
[1742886875856,0.00017316,86624.0,86623.0,0.1154289]
[1742886876063,0.04097316,86624.0,86623.0,0.49275865]
[1742886876361,0.04097316,86624.0,86623.0,0.55005865]
[1742886876559,0.04097316,86624.0,86623.0,0.66255865]
[1742886876960,0.00017316,86624.0,86623.0,0.68709655]
[1742886881168,0.00017316,86624.0,86623.0,0.6871908]
[1742886881465,0.1154194,86631.0,86630.0,0.1154182]
[1742886881672,0.1161394,86631.0,86630.0,0.1319622]
[1742886881860,0.1161394,86631.0,86630.0,0.14678158]
[1742886882262,0.00072,86631.0,86630.0,0.14678158]
[1742886882573,0.0004,86632.0,86631.0,0.1154182]
[1742886882770,0.1158169,86632.0,86631.0,0.1160182]
[1742886883070,0.1165369,86632.0,86631.0,0.1132]
[1742886883461,0.1165369,86632.0,86631.0,0.12801938]
[1742886883864,0.1165369,86632.0,86631.0,0.24343758]
[1742886884771,0.1165369,86632.0,86631.0,0.25930679]
[1742886884971,0.2242369,86632.0,86631.0,0.25930679]
[1742886887364,0.2242369,86632.0,86631.0,0.24343758]
[1742886888073,0.2242369,86632.0,86631.0,0.25920324]
[1742886888272,0.2242369,86632.0,86631.0,0.24343758]
[1742886893179,0.2242369,86632.0,86631.0,0.25930913]
[1742886893775,0.2242369,86632.0,86631.0,0.24343758]
[1742886896271,0.2242369,86632.0,86631.0,0.25932882]
[1742886899167,0.2242369,86632.0,86631.0,0.25931227]
[1742886900284,0.2242369,86632.0,86631.0,0.25933134]
[1742886900486,0.2242369,86632.0,86631.0,0.14391314]
[1742886901982,0.2242369,86632.0,86631.0,0.25933134]
[1742886902782,0.2242369,86632.0,86631.0,0.28471175]
[1742886903185,0.2242369,86632.0,86631.0,0.16929355]
[1742886903585,0.1154275,86624.0,86623.0,0.00971852]
[1742886903788,0.1154449,86611.0,86610.0,0.2251462]
[1742886903980,0.1154449,86611.0,86610.0,0.25118327]
[1742886904687,0.2249449,86611.0,86610.0,0.25118327]
[1742886904883,0.2249449,86611.0,86610.0,0.14512197]
[1742886905088,0.22590491,86611.0,86610.0,0.1196849]
[1742886907181,0.22590491,86611.0,86610.0,0.2351311]
[1742886907376,0.16960491,86611.0,86610.0,0.2351311]
[1742886908876,0.16960491,86611.0,86610.0,0.1196849]
[1742886909081,0.22320491,86611.0,86610.0,0.1103]
[1742886910591,0.1154462,86610.0,86609.0,8e-05]
[1742886910888,0.1154689,86594.0,86593.0,0.1154683]
[1742886911084,0.1154689,86594.0,86593.0,0.2857345]
[1742886911284,0.1163889,86594.0,86593.0,0.2857345]
[1742886911687,0.1163889,86594.0,86593.0,0.29514175]
[1742886912283,0.1163889,86594.0,86593.0,0.34964175]
[1742886912592,0.1163889,86594.0,86593.0,0.35264175]
[1742886913093,0.1163889,86594.0,86593.0,0.35164175]
[1742886914491,0.0577272,86604.0,86603.0,0.1154555]
[1742886914692,0.0583672,86604.0,86603.0,0.1160555]
[1742886915294,0.0583672,86604.0,86603.0,0.2272555]
[1742886915493,0.0583672,86604.0,86603.0,0.1118]
[1742886916087,0.0583672,86604.0,86603.0,0.12658443]
[1742886916286,0.0583672,86604.0,86603.0,0.24203993]
[1742886917482,0.0583672,86604.0,86603.0,0.2272555]
[1742886917694,0.0583672,86604.0,86603.0,0.1118]
[1742886918295,0.1153672,86604.0,86603.0,0.2272555]
[1742886918695,0.1153672,86604.0,86603.0,0.1118]
[1742886919295,0.1153672,86604.0,86603.0,0.2272555]
[1742886919599,0.1153672,86604.0,86603.0,0.1118]
[1742886920190,0.1153672,86604.0,86603.0,0.2272555]
[1742886920797,0.0583672,86604.0,86603.0,0.2272555]
[1742886921301,0.0583672,86604.0,86603.0,0.24202296]
[1742886921800,0.0583672,86604.0,86603.0,0.12656746]
[1742886921996,0.0583672,86604.0,86603.0,0.1118]
[1742886922399,0.1127672,86604.0,86603.0,0.1118]
[1742886922592,0.1127672,86604.0,86603.0,0.2272555]
[1742886922792,0.1127672,86604.0,86603.0,0.1118]
[1742886927608,0.1127672,86604.0,86603.0,0.2272555]
[1742886928198,0.00064,86604.0,86603.0,0.2272555]
[1742886928503,0.00064,86604.0,86603.0,0.24246206]
[1742886928809,0.1160942,86604.0,86603.0,0.24246206]
[1742886929307,0.00064,86604.0,86603.0,0.24246206]
[1742886929513,0.1160942,86604.0,86603.0,0.24246206]
[1742886929703,0.1160942,86604.0,86603.0,0.26711707]
[1742886930003,0.13749671,86611.0,86610.0,0.1154462]
[1742886930196,0.13821671,86611.0,86610.0,0.49157757]
[1742886930396,0.25294161,86611.0,86610.0,0.49229757]
[1742886930606,0.25370161,86611.0,86610.0,0.60429757]
[1742886930803,0.1162049,86611.0,86610.0,0.60429757]
[1742886931020,0.1161649,86611.0,86610.0,0.60429757]
[1742886931309,0.1161649,86611.0,86610.0,0.60432873]
[1742886932408,0.00072,86611.0,86610.0,0.60432873]
[1742886932907,0.00072,86611.0,86610.0,0.60422901]
[1742886933409,0.00072,86611.0,86610.0,0.62870245]
[1742886934105,0.00072,86611.0,86610.0,0.60422901]
[1742886934301,0.00072,86611.0,86610.0,0.5889662]
[1742886934506,0.13749671,86616.0,86615.0,0.1154395]
[1742886934808,0.13821671,86616.0,86615.0,0.13138337]
[1742886935010,0.13821671,86616.0,86615.0,0.24718337]
[1742886935803,0.13821671,86616.0,86615.0,0.30928337]
[1742886938312,0.00072,86616.0,86615.0,0.30928337]
[1742886938532,0.179249,86617.0,86616.0,0.1154498]
[1742886938713,0.17984901,86617.0,86616.0,0.13139367]
[1742886938913,0.17984901,86617.0,86616.0,0.25379367]
[1742886940216,0.06440001,86617.0,86616.0,0.2638717]
[1742886941110,0.12360001,86617.0,86616.0,0.2638717]
[1742886941317,0.05980001,86617.0,86616.0,0.2638717]
[1742886942304,0.05980001,86617.0,86616.0,0.26385758]
[1742886943006,0.00060001,86617.0,86616.0,0.26385758]
[1742886944218,0.05910001,86617.0,86616.0,0.26385758]
[1742886946910,0.05910001,86617.0,86616.0,0.26384879]
[1742886949619,0.11760001,86617.0,86616.0,0.26384879]
[1742886950620,0.23304841,86617.0,86616.0,0.263853]
[1742886951118,0.23304841,86617.0,86616.0,0.24864783]
[1742886952220,0.23304841,86617.0,86616.0,0.26360166]
[1742886952610,0.23304841,86617.0,86616.0,0.24864783]
[1742886953216,0.11760001,86617.0,86616.0,0.24864783]
[1742886953914,0.11760001,86617.0,86616.0,0.26361398]
[1742886954911,0.23304841,86617.0,86616.0,0.26361398]
[1742886956717,0.23304841,86617.0,86616.0,0.26358768]
[1742886957421,0.11760001,86617.0,86616.0,0.26358768]
[1742886959426,0.23304841,86617.0,86616.0,0.26358768]
[1742886960221,0.11760001,86617.0,86616.0,0.26358768]
[1742886963423,0.11760001,86617.0,86616.0,0.26343393]
[1742886965423,0.05910001,86617.0,86616.0,0.26343393]
[1742886965615,0.05910001,86617.0,86616.0,0.263417]
[1742886965925,0.00060001,86617.0,86616.0,0.263417]
[1742886966338,0.05540001,86617.0,86616.0,0.263417]
[1742886966525,0.00060001,86617.0,86616.0,0.263417]
[1742886967428,0.05673269,86617.0,86616.0,0.263417]
[1742886967831,0.05673269,86617.0,86616.0,0.26342869]
[1742886968615,0.17218109,86617.0,86616.0,0.00072]
[1742886968830,0.1154604,86608.0,86607.0,0.00017316]
[1742886969024,0.1161804,86608.0,86607.0,0.0156752]
[1742886969226,0.1154657,86604.0,86603.0,0.20741716]
[1742886969527,0.1154657,86604.0,86603.0,0.20805716]
[1742886969528,0.1161457,86604.0,86603.0,0.20805716]
[1742886971128,0.2274457,86604.0,86603.0,0.20805716]
[1742886971630,0.2274457,86604.0,86603.0,0.00064]
[1742886971825,0.1154684,86602.0,86601.0,0.1144]
[1742886972026,0.1161484,86602.0,86601.0,0.1144]
[1742886974428,0.4769484,86602.0,86601.0,0.1144]
[1742886975629,0.53337062,86602.0,86601.0,0.2298697]
[1742886975835,0.17257062,86602.0,86601.0,0.5912697]
[1742886976134,0.17257062,86602.0,86601.0,0.60618374]
[1742886976729,0.17257062,86602.0,86601.0,0.24531571]
[1742886977327,0.17257062,86602.0,86601.0,0.2304697]
[1742886979426,0.00068,86602.0,86601.0,0.2304697]
[1742886982423,0.10379624,86602.0,86601.0,0.2304697]
[1742886987735,0.10379624,86602.0,86601.0,0.5912697]
[1742886988740,0.00068,86602.0,86601.0,0.5912697]
[1742886988930,0.10311624,86604.0,86603.0,0.1154671]
[1742886989138,0.10379624,86604.0,86603.0,0.1160671]
[1742886990238,0.13748833,86609.0,86608.0,0.1154604]
[1742886990441,0.17189062,86617.0,86616.0,0.1154498]
[1742886990636,0.17261062,86617.0,86616.0,0.4769698]
[1742886991437,0.17261062,86617.0,86616.0,0.5896698]
[1742886991938,0.17361062,86617.0,86616.0,0.5896698]
[1742886992444,0.20626875,86624.0,86623.0,0.1154404]
[1742886992639,0.20626875,86624.0,86623.0,0.2308804]
[1742886992843,0.20722876,86624.0,86623.0,0.5916804]
[1742886993343,0.20722876,86624.0,86623.0,0.71570061]
[1742886993644,0.00096001,86624.0,86623.0,0.71570061]
[1742886993947,0.1117,86630.0,86629.0,0.1154324]
[1742886994138,0.0576,86630.0,86629.0,0.1166324]
[1742886994646,0.00057316,86632.0,86631.0,0.1154298]
[1742886994845,0.00177317,86632.0,86631.0,0.1166298]
[1742886996742,0.00177317,86632.0,86631.0,0.4774298]
[1742886997330,0.00057316,86632.0,86631.0,0.4774298]
[1742886999747,0.00177317,86632.0,86631.0,0.4774298]
[1742887000137,0.00057316,86632.0,86631.0,0.4774298]
[1742887001145,0.00177317,86632.0,86631.0,0.5918698]
[1742887001345,0.00057316,86632.0,86631.0,0.5918698]
[1742887003246,0.00057316,86632.0,86631.0,0.2310698]
[1742887006947,0.00057316,86632.0,86631.0,0.1166298]
[1742887007247,0.00177317,86632.0,86631.0,0.2310698]
[1742887007450,0.00057316,86632.0,86631.0,0.2310698]
[1742887008048,0.00117317,86632.0,86631.0,0.2310698]
[1742887008241,0.00057316,86632.0,86631.0,0.2310698]
[1742887011056,0.11600156,86632.0,86631.0,0.0012]
[1742887011243,0.1154364,86627.0,86626.0,0.1154362]
[1742887011553,0.47743641,86627.0,86626.0,0.1166362]
[1742887011744,0.65253641,86627.0,86626.0,0.1166362]
[1742887012153,0.53710001,86627.0,86626.0,0.1166362]
[1742887012647,0.53710001,86627.0,86626.0,0.2323362]
[1742887013051,0.65253511,86627.0,86626.0,0.2323362]
[1742887014553,0.53710001,86627.0,86626.0,0.2323362]
[1742887014757,0.65253511,86627.0,86626.0,0.2323362]
[1742887018750,0.65253511,86627.0,86626.0,0.2472155]
[1742887020556,0.53710001,86627.0,86626.0,0.2472155]
[1742887021647,0.47710001,86627.0,86626.0,0.2472155]
[1742887022651,0.11830001,86627.0,86626.0,0.6080155]
[1742887022957,0.11830001,86627.0,86626.0,0.2472155]
[1742887025762,0.11830001,86627.0,86626.0,0.6080155]
[1742887025952,0.11830001,86627.0,86626.0,0.2472155]
[1742887026155,0.11830001,86627.0,86626.0,0.6080155]
[1742887026859,0.11830001,86627.0,86626.0,0.2472155]
[1742887029153,0.11830001,86627.0,86626.0,0.24730423]
[1742887031465,0.05850001,86627.0,86626.0,0.24730423]
[1742887031863,0.05850001,86627.0,86626.0,0.60810423]
[1742887032059,0.00120001,86627.0,86626.0,0.60810423]
[1742887032370,0.00057316,86632.0,86631.0,0.1154298]
[1742887032557,0.06115316,86632.0,86631.0,0.13163783]
[1742887032757,0.11665316,86632.0,86631.0,0.13163783]
[1742887033156,0.11665316,86632.0,86631.0,0.24853783]
[1742887034466,0.11665316,86632.0,86631.0,0.36293783]
[1742887041764,0.11665316,86632.0,86631.0,0.36305355]
[1742887042565,0.11537316,86632.0,86631.0,0.36305355]
[1742887042771,0.11661317,86632.0,86631.0,0.36305355]
[1742887043068,0.06111317,86632.0,86631.0,0.36305355]
[1742887043269,0.00181317,86632.0,86631.0,0.36305355]
[1742887043667,0.00177317,86632.0,86631.0,0.36305355]
[1742887043861,0.00057316,86632.0,86631.0,0.36310497]
[1742887045866,0.00057316,86632.0,86631.0,0.36309362]
[1742887051767,1e-08,86632.0,86631.0,0.36309362]
[1742887051962,1e-08,86632.0,86631.0,0.59309362]
[1742887052166,0.17220162,86647.0,86631.0,0.59309362]
[1742887052167,0.22870162,86647.0,86646.0,0.1154098]
[1742887052375,0.22930163,86647.0,86646.0,0.2310098]
[1742887052881,0.22930163,86647.0,86646.0,0.24586519]
[1742887053065,0.22930163,86647.0,86646.0,0.35776519]
[1742887053271,0.22930163,86647.0,86646.0,0.36855856]
[1742887053572,0.22930163,86647.0,86646.0,0.35370317]
[1742887055168,0.05710001,86647.0,86646.0,0.35370317]
[1742887057278,0.05710001,86647.0,86646.0,0.36245943]
[1742887058473,0.00060001,86647.0,86646.0,0.36245943]
[1742887059576,0.00060001,86647.0,86646.0,0.37728808]
[1742887059872,0.0552,86653.0,86652.0,0.1154018]
[1742887060077,0.17237478,86655.0,86654.0,0.1153991]
[1742887060275,0.17381478,86655.0,86654.0,0.13166775]
[1742887060472,0.17237478,86655.0,86654.0,0.13166775]
[1742887060673,0.20626875,86662.0,86659.0,0.0576957]
[1742887060873,0.20626875,86662.0,86660.0,0.24128865]
[1742887061079,0.0552,86661.0,86660.0,0.3436511]
[1742887061378,0.0552,86661.0,86660.0,0.35858069]
[1742887062279,0.0552,86661.0,86660.0,0.3436511]
[1742887066175,0.0004,86664.0,86663.0,0.1153871]
[1742887066474,0.0004,86664.0,86663.0,0.13225513]
[1742887071086,0.0004,86664.0,86663.0,0.13206464]
[1742887072083,0.0004,86664.0,86663.0,0.1320585]
[1742887072894,0.0004,86664.0,86663.0,0.4928585]
[1742887076292,0.0004,86664.0,86663.0,0.4779871]
[1742887076488,0.0004,86664.0,86663.0,0.5923071]
[1742887076895,0.0004,86664.0,86663.0,0.7066071]
[1742887078885,0.0004,86664.0,86663.0,0.72159812]
[1742887080788,0.0004,86664.0,86663.0,0.7066071]
[1742887081107,0.0004,86664.0,86663.0,0.72160297]
[1742887081297,0.0004,86664.0,86663.0,0.77800297]
[1742887090301,0.0004,86664.0,86663.0,0.41720297]
[1742887090608,0.0004,86664.0,86663.0,0.77800297]
[1742887092611,0.0004,86664.0,86663.0,0.66368297]
[1742887092807,0.0004,86664.0,86663.0,0.77796297]
[1742887094301,0.0004,86664.0,86663.0,0.41716297]
[1742887094605,0.0004,86664.0,86663.0,0.77796297]
[1742887095809,0.0004,86664.0,86663.0,0.72156297]
[1742887096405,0.0004,86664.0,86663.0,0.72165317]
[1742887098212,0.0004,86664.0,86663.0,0.36085317]
[1742887098406,0.0004,86664.0,86663.0,0.72165317]
[1742887100911,0.00017316,86669.0,86668.0,0.1153805]
[1742887101118,0.00017316,86669.0,86668.0,0.49306657]
[1742887101719,0.00017316,86669.0,86668.0,0.60726657]
[1742887103420,0.00017316,86669.0,86668.0,0.96806657]
[1742887106222,0.00017316,86669.0,86668.0,0.96804804]
[1742887106920,0.0555,86673.0,86672.0,0.1153752]
[1742887107127,0.0555,86673.0,86672.0,0.24652274]
[1742887107513,0.0568,86674.0,86673.0,0.1153738]
[1742887107708,0.0568,86674.0,86673.0,0.23894134]
[1742887107913,0.0568,86674.0,86673.0,0.30460932]
[1742887108214,0.0568,86674.0,86673.0,0.28954178]
[1742887108414,0.0568,86674.0,86673.0,0.30478013]
[1742887108923,0.0568,86674.0,86673.0,0.66558013]
[1742887109624,0.0568,86674.0,86673.0,0.69008278]
[1742887112820,0.0568,86674.0,86673.0,0.63688278]
[1742887117027,0.1104,86674.0,86673.0,0.63688278]
[1742887119620,0.1104,86674.0,86673.0,0.65162124]
[1742887120020,8e-05,86675.0,86674.0,0.1153725]
[1742887120220,8e-05,86675.0,86674.0,0.1569135]
[1742887120421,8e-05,86675.0,86674.0,0.2633135]
[1742887120624,8e-05,86675.0,86674.0,0.27805196]
[1742887121326,8e-05,86675.0,86674.0,0.2633135]
[1742887122029,8e-05,86675.0,86674.0,0.26339545]
[1742887122330,8e-05,86675.0,86674.0,0.27812256]
[1742887122927,8e-05,86675.0,86674.0,0.63892256]
[1742887124137,8e-05,86675.0,86674.0,0.62419545]
[1742887125427,8e-05,86675.0,86674.0,0.6389888]
[1742887128841,8e-05,86675.0,86674.0,0.84631618]
[1742887129438,8e-05,86675.0,86674.0,1.11631618]
[1742887129635,8e-05,86675.0,86674.0,0.84631618]